bitfinex/quotes_ETHUSD_20240703
["timestamp","ask_amount","ask_price","bid_price","bid_amount"]
[1719971784536,2.36015,3389.7,3388.8,0.005]
[1719971785050,1.67644407,3390.1,3388.8,0.005]
[1719971785051,2.36018,3389.6,3388.8,0.005]
[1719971785253,1.67644407,3390.1,3388.8,0.005]
[1719971785254,0.59353955,3389.5,3388.8,0.005]
[1719971785441,4.72128,3388.9,3388.8,0.005]
[1719971785937,6.62904436,3388.9,3388.8,0.005]
[1719971786246,11.13657786,3388.9,3388.8,0.005]
[1719971786466,7.37934122,3388.9,3388.8,0.005]
[1719971787263,2.65806122,3388.9,3388.8,0.005]
[1719971787427,6.86805723,3388.9,3388.8,0.005]
[1719971787632,4.50741723,3388.9,3388.8,0.005]
[1719971787975,4.50722521,3388.9,3388.8,0.005]
[1719971788144,2.14658521,3388.9,3388.8,0.005]
[1719971788836,4.50717521,3389.0,3388.8,0.005]
[1719971789031,2.14658521,3388.9,3388.8,0.005]
[1719971789232,1.39589193,3389.9,3388.8,0.005]
[1719971789433,2.14610528,3389.8,3388.8,0.06401021]
[1719971789733,2.14610528,3389.7,3388.8,0.005]
[1719971790072,2.35969,3390.3,3388.8,0.005]
[1719971790242,2.35986,3390.1,3388.8,0.005]
[1719971790428,2.35996,3389.9,3388.8,0.005]
[1719971790635,0.235958,3390.4,3388.8,0.005]
[1719971790636,2.36018,3389.6,3388.8,0.005]
[1719971790942,1.39614514,3389.7,3388.8,0.005]
[1719971791269,4.05376861,3389.6,3388.8,0.005]
[1719971791467,4.45893985,3389.5,3388.8,0.005]
[1719971791768,2.3604,3389.3,3388.8,0.005]
[1719971791934,2.36045,3389.2,3388.8,0.005]
[1719971792136,2.3603,3389.4,3388.8,0.005]
[1719971792137,2.36058,3389.0,3388.8,0.005]
[1719971792561,1.81232734,3389.3,3388.8,0.005]
[1719971792562,4.50737915,3388.9,3388.8,0.005]
[1719971793580,5.01854086,3388.9,3388.8,0.005]
[1719971793788,2.36058,3389.0,3388.8,0.005]
[1719971793987,4.50753455,3388.9,3388.8,0.005]
[1719971794288,2.36044,3389.2,3388.8,0.005]
[1719971794570,2.36064,3388.9,3388.8,0.005]
[1719971794783,4.50750837,3388.9,3388.8,0.005]
[1719971795131,2.14686837,3388.9,3388.8,0.005]
[1719971795334,1.3959071,3389.2,3388.8,0.005]
[1719971795536,3.096,3390.0,3388.8,0.005]
[1719971795537,1.3959071,3389.6,3388.8,0.005]
[1719971795736,2.14642957,3389.5,3388.8,0.005]
[1719971795972,2.14642957,3389.4,3388.8,0.005]
[1719971796176,1.90696585,3389.3,3388.8,0.005]
[1719971796378,2.14642957,3389.2,3388.8,0.005]
[1719971796578,2.71447367,3389.5,3388.8,0.005]
[1719971796579,1.3959071,3389.5,3388.8,0.005]
[1719971796734,1.39619227,3390.1,3388.8,0.005]
[1719971796933,2.14607449,3390.0,3388.8,2.42470365]
[1719971797139,2.35996,3389.9,3388.8,0.005]
[1719971797439,2.73557523,3389.9,3388.8,0.005]
[1719971797671,2.14618806,3389.8,3388.8,0.005]
[1719971797904,1.39619227,3390.0,3388.9,2.36059]
[1719971798034,1.39619227,3390.1,3388.8,0.005]
[1719971798371,2.35975,3390.2,3388.8,2.42471731]
[1719971798372,1.39619227,3390.2,3388.8,2.42471731]
[1719971798672,1.39619227,3390.2,3389.1,2.36048]
[1719971798836,1.39619227,3390.3,3389.2,2.41943139]
[1719971799042,1.39619227,3390.6,3389.4,2.36027]
[1719971799336,1.39619227,3390.8,3389.6,2.36015]
[1719971799702,1.39619227,3390.8,3389.7,0.05899351]
[1719971799840,0.00392724,3390.0,3389.7,0.05899351]
[1719971800402,0.00392724,3390.0,3389.8,0.0589918]
[1719971800560,0.00392724,3390.0,3389.7,2.83798135]
[1719971800745,0.00392724,3390.0,3389.8,2.36]
[1719971801267,0.00392724,3390.0,3389.9,2.35995]
[1719971801442,0.00392724,3390.0,3389.9,4.7199]
[1719971801644,1.39619227,3391.7,3390.3,2.35964]
[1719971801842,4.05202514,3391.6,3390.4,0.05898095]
[1719971802074,1.75934151,3391.7,3390.4,2.41852095]
[1719971802255,2.30371277,3392.0,3390.7,2.35938]
[1719971802637,0.9075205,3392.2,3390.8,2.41828417]
[1719971802927,2.30482285,3392.4,3390.8,0.05897417]
[1719971803131,2.30482285,3392.4,3391.0,2.35917]
[1719971803132,1.48668648,3392.4,3391.0,2.35917]
[1719971803344,2.39420698,3392.4,3390.1,2.35974]
[1719971803493,2.35856,3391.9,3390.4,2.35954]
[1719971803899,3.2659505,3392.1,3390.6,2.35946]
[1719971804205,0.9075205,3392.2,3390.7,0.05897608]
[1719971804398,0.91358166,3392.1,3390.1,2.35978]
[1719971804652,3.2660205,3392.0,3390.1,2.35978]
[1719971804799,3.2660205,3392.0,3389.9,6.04374]
[1719971804800,2.35857,3391.9,3389.9,6.04374]
[1719971805113,0.9075205,3392.0,3390.3,2.35966]
[1719971805315,4.48202899,3392.1,3390.4,2.4185377]
[1719971805316,0.9075205,3392.1,3390.4,2.4185377]
[1719971805530,0.9075205,3392.2,3389.9,3.6838]
[1719971805731,3.2660105,3392.0,3390.3,2.35967]
[1719971805944,2.35849,3392.0,3390.3,2.35967]
[1719971806146,2.35851,3392.0,3389.6,5.36011]
[1719971806384,2.35813,3392.6,3388.6,3.096]
[1719971806385,7.48,3392.7,3390.6,2.513]
[1719971806667,7.48,3392.7,3391.6,4.71742]
[1719971806813,3.8714362,3393.3,3391.6,4.71742]
[1719971806814,0.9075205,3393.1,3391.6,4.71742]
[1719971807136,3.56761733,3393.3,3391.7,0.05895579]
[1719971807137,3.2651105,3393.3,3391.7,0.05895579]
[1719971807343,3.2651105,3393.3,3391.8,0.05895577]
[1719971807508,0.68325878,3393.2,3391.8,0.05895577]
[1719971807709,0.68325878,3393.2,3391.8,2.41757577]
[1719971808008,2.6835205,3393.1,3390.7,6.83184]
[1719971808236,2.35814,3392.5,3390.9,2.35919]
[1719971808426,0.47162,3392.4,3391.0,2.35917]
[1719971808653,1.776,3393.1,3391.1,2.41807294]
[1719971808654,0.90765739,3393.0,3391.1,2.41807294]
[1719971808805,2.35802,3392.7,3391.1,2.35911]
[1719971809005,2.35821,3392.4,3390.9,2.35925]
[1719971809352,2.35802,3392.7,3390.0,3.9225]
[1719971809353,2.35842,3392.1,3390.0,3.9225]
[1719971809584,2.35872,3391.7,3390.0,3.9225]
[1719971809857,2.35896,3391.4,3390.0,3.9225]
[1719971810157,11.20497,3391.6,3390.0,3.9225]
[1719971810357,2.35885,3391.5,3390.0,3.9225]
[1719971810567,11.20497,3391.6,3390.1,2.35979]
[1719971810709,11.20497,3391.6,3390.0,3.9225]
[1719971810710,2.35891,3391.4,3390.0,6.28238]
[1719971810908,2.35891,3391.4,3389.7,2.36003]
[1719971811242,2.35897,3391.3,3389.5,2.36022]
[1719971811423,2.35918,3391.0,3389.5,2.36022]
[1719971811754,8.8462,3390.9,3389.5,2.36022]
[1719971811969,9.966738,3390.9,3389.5,2.36022]
[1719971812308,8.8462,3390.9,3389.6,2.41911082]
[1719971812712,8.8462,3390.9,3389.7,2.36009]
[1719971812947,8.8462,3390.9,3389.8,0.05898263]
[1719971813157,8.8462,3390.9,3390.2,4.71948]
[1719971813308,8.8462,3390.9,3390.3,0.05897972]
[1719971813513,8.8462,3390.9,3390.3,2.41862972]
[1719971813743,8.8462,3390.9,3390.3,0.05897972]
[1719971814312,8.8462,3390.9,3389.8,2.36001]
[1719971814520,8.8462,3390.9,3390.1,2.35974]
[1719971814750,8.8462,3390.9,3390.2,0.05897991]
[1719971814908,8.8462,3390.9,3390.4,2.35958]
[1719971815254,8.8462,3390.9,3390.6,2.35942]
[1719971815450,8.8462,3390.9,3390.7,0.05897619]
[1719971816053,8.8462,3390.9,3390.4,6.4009]
[1719971816364,8.8462,3390.9,3389.6,2.3601]
[1719971816365,8.8462,3390.9,3389.7,3.8706]
[1719971816568,8.8462,3390.9,3390.2,2.35969]
[1719971816709,8.8462,3390.9,3389.7,3.8706]
[1719971817358,8.8462,3390.9,3389.8,2.36001]
[1719971817583,8.8462,3390.9,3389.7,3.8706]
[1719971817764,8.8462,3390.9,3389.7,2.36007]
[1719971818222,9.966733,3390.9,3389.7,2.36007]
[1719971818411,9.966733,3390.9,3389.1,0.47851973]
[1719971818612,2.35933,3390.8,3389.1,0.47851973]
[1719971818828,2.35933,3390.8,3389.4,2.36028]
[1719971819693,8.8462,3390.9,3389.9,2.513]
[1719971819830,8.8462,3390.9,3390.7,2.35936]
[1719971820029,8.8462,3390.9,3390.8,4.71864]
[1719971820673,8.8462,3390.9,3390.8,5.26864]
[1719971821266,8.8462,3390.9,3390.8,5.795504]
[1719971821630,8.8462,3390.9,3390.8,5.26864]
[1719971821832,8.8462,3390.9,3390.3,3.8501]
[1719971821833,8.8462,3390.9,3390.4,2.35954]
[1719971822066,8.8462,3390.9,3390.2,2.35973]
[1719971822289,8.8462,3390.9,3390.8,2.35932]
[1719971823603,3.70138969,3392.5,3390.8,2.35932]
[1719971823604,1.39707287,3392.5,3391.6,2.35876]
[1719971823896,1.39707287,3392.5,3392.4,4.71642]
[1719971824674,1.39707287,3392.5,3392.4,5.26642]
[1719971824895,1.39707287,3392.5,3392.4,7.62463]
[1719971825036,1.39707287,3392.5,3392.4,10.62463]
[1719971825239,1.33814616,3392.5,3392.4,14.673067]
[1719971825426,6.16e-06,3392.5,3392.4,12.314857]
[1719971825867,0.05889732,3394.8,3393.7,2.35728]
[1719971826045,0.05889732,3394.8,3393.8,0.05892018]
[1719971826255,0.05889732,3395.0,3393.8,2.35722]
[1719971826458,2.35597,3395.7,3393.0,2.35774]
[1719971826459,0.90727538,3396.4,3393.9,3.7791155]
[1719971826683,0.05889732,3395.9,3394.3,2.35686]
[1719971826853,2.35555,3396.3,3394.3,2.35686]
[1719971826854,0.05889732,3396.2,3394.4,0.05890422]
[1719971827172,2.86577396,3396.1,3394.4,0.05890422]
[1719971827338,0.58691945,3396.0,3394.3,2.35686]
[1719971827537,0.05889732,3396.0,3394.5,2.35672]
[1719971827734,2.35549,3396.4,3394.5,2.35672]
[1719971828043,2.35549,3396.4,3394.3,2.35683]
[1719971828044,0.05889732,3396.3,3394.7,2.3566]
[1719971828351,6.12924,3396.6,3394.0,0.55]
[1719971828352,0.05889732,3396.2,3394.0,0.55]
[1719971828556,2.41425732,3396.5,3394.6,2.35664]
[1719971828769,0.05889732,3396.5,3394.7,0.05889779]
[1719971828974,0.05889732,3396.5,3394.6,2.35662]
[1719971828975,0.05889732,3396.5,3394.9,2.35646]
[1719971829182,0.05889732,3396.5,3395.0,0.05889359]
[1719971829483,3.7739,3396.6,3395.3,2.35618]
[1719971829646,0.05889732,3397.0,3395.5,2.35604]
[1719971829854,0.05889732,3397.0,3395.6,2.41480358]
[1719971830047,0.05889732,3397.2,3395.7,2.3559]
[1719971830387,0.05889732,3397.5,3395.8,2.41468937]
[1719971830595,0.05889732,3397.5,3396.0,2.35564]
[1719971830766,0.05889732,3397.5,3396.1,0.05887767]
[1719971831086,2.35431,3398.1,3396.2,2.35555]
[1719971831288,2.35431,3398.1,3396.3,0.05887121]
[1719971831589,0.61872411,3398.3,3396.5,2.3553]
[1719971831753,0.61872411,3398.3,3396.6,0.05886376]
[1719971832597,0.61872411,3398.3,3396.5,2.3553]
[1719971832893,0.0713711,3398.6,3397.1,2.35494]
[1719971833078,0.0713711,3398.6,3397.2,2.4136722]
[1719971833255,0.0713711,3398.6,3397.4,2.35467]
[1719971833455,0.0713711,3398.6,3397.1,2.35494]
[1719971833456,0.0713711,3398.6,3397.2,2.35486]
[1719971834096,0.0713711,3398.6,3397.3,2.41366224]
[1719971834500,0.0713711,3398.6,3397.4,2.35473]
[1719971834698,0.0713711,3398.6,3397.5,0.05885173]
[1719971835722,0.0713711,3398.6,3397.7,2.3545]
[1719971836008,0.0703056,3398.6,3398.0,2.35427]
[1719971836298,0.0703056,3398.6,3398.1,0.05883665]
[1719971836508,0.0703056,3398.6,3398.1,2.35422]
[1719971836715,0.0703056,3398.6,3398.4,2.35403]
[1719971837379,0.0703056,3398.6,3398.1,0.235422]
[1719971837380,0.0703056,3398.6,3398.5,2.35397]
[1719971837624,0.0703056,3398.6,3398.5,2.90397]
[1719971838108,0.011,3399.1,3399.0,4.70726]
[1719971838264,0.011,3399.1,3399.0,5.25726]
[1719971839676,0.011,3399.1,3399.0,5.782986]
[1719971839870,6.29978,3401.7,3399.5,2.35324]
[1719971840207,6.29978,3401.7,3399.6,2.90321]
[1719971840208,2.35197,3401.4,3399.6,2.90321]
[1719971840417,0.235197,3401.3,3399.6,0.55]
[1719971841266,2.35211,3401.2,3399.6,0.55]
[1719971841496,2.35225,3401.0,3399.2,2.35344]
[1719971841703,2.35225,3401.0,3399.3,0.55]
[1719971842004,3.948,3401.7,3398.3,6.36006]
[1719971842005,2.35268,3400.4,3398.3,6.36006]
[1719971842165,6.01539,3400.3,3398.3,6.36006]
[1719971842366,6.01539,3400.3,3398.0,2.35426]
[1719971842367,2.35308,3399.8,3398.0,2.35426]
[1719971842794,2.35344,3399.3,3397.7,2.35451]
[1719971843101,2.35332,3399.5,3397.7,2.35451]
[1719971843315,2.3536,3399.1,3397.2,2.35481]
[1719971843474,2.35308,3399.8,3397.2,2.35481]
[1719971843475,3.0,3399.7,3397.2,2.35481]
[1719971843674,2.35364,3399.0,3397.3,2.3548]
[1719971844180,2.35364,3399.0,3396.6,0.23553]
[1719971844181,2.35422,3398.2,3396.6,0.23553]
[1719971844375,2.35417,3398.3,3396.7,2.35521]
[1719971844576,0.470815,3398.3,3396.7,2.35521]
[1719971844774,2.35411,3398.3,3396.8,2.35515]
[1719971845067,3.8532,3399.0,3396.9,0.05886333]
[1719971845276,2.35338,3399.4,3397.8,2.3544]
[1719971845570,2.35338,3399.4,3396.8,4.86809]
[1719971845571,3.0,3399.5,3397.6,2.35459]
[1719971845767,2.35377,3398.8,3397.1,2.35493]
[1719971846078,5.35348,3399.3,3397.6,2.3546]
[1719971846398,2.3535,3399.2,3397.6,2.3546]
[1719971846602,0.3,3399.4,3397.7,0.55]
[1719971846802,2.35301,3399.9,3398.4,2.35403]
[1719971847097,2.35288,3400.1,3398.4,4.70806]
[1719971847304,3.8531,3400.2,3398.7,2.35377]
[1719971847477,2.35254,3400.6,3399.1,2.35355]
[1719971847675,0.235254,3400.5,3399.2,0.05882593]
[1719971847878,2.587854,3400.5,3399.3,0.05882594]
[1719971848087,2.3526,3400.5,3399.0,0.05882594]
[1719971848427,2.37827739,3400.5,3398.6,2.3539]
[1719971848714,0.02567739,3400.4,3394.5,1.41691175]
[1719971848871,3.096,3400.3,3396.9,2.513]
[1719971849211,2.35357,3399.1,3397.2,1.178609]
[1719971849521,2.35313,3399.8,3396.7,3.9504]
[1719971849522,2.35377,3398.8,3397.0,2.35499]
[1719971850010,2.35377,3398.8,3395.7,1.776]
[1719971850011,2.35414,3398.3,3396.0,3.7311]
[1719971850209,3.95205,3398.7,3396.0,3.7311]
[1719971850382,3.95205,3398.7,3396.3,2.3555]
[1719971850383,2.35447,3397.8,3396.3,2.3555]
[1719971850585,2.35467,3397.5,3396.0,2.35571]
[1719971850799,9.065847,3397.7,3396.0,2.35571]
[1719971851009,2.35468,3397.5,3395.8,2.35583]
[1719971851171,2.35487,3397.3,3395.9,0.05888555]
[1719971851370,14.89288,3397.4,3395.5,2.35599]
[1719971851601,2.35495,3397.1,3395.5,2.35599]
[1719971851788,0.235495,3397.0,3395.5,2.35599]
[1719971851994,0.235495,3397.0,3394.7,2.35655]
[1719971851995,0.235495,3397.0,3395.0,2.35639]
[1719971852186,12.5381,3397.4,3395.0,2.35639]
[1719971852187,2.35531,3396.6,3395.0,2.35639]
[1719971853304,2.35517,3396.8,3395.0,2.35639]
[1719971853305,2.35538,3396.5,3395.0,2.35639]
[1719971853770,2.35538,3396.5,3394.7,2.35657]
[1719971853975,2.35551,3396.3,3394.5,6.05083]
[1719971854176,2.35551,3396.3,3394.6,2.35668]
[1719971854399,2.35551,3396.3,3394.5,3.6941]
[1719971854595,0.235538,3396.4,3394.2,2.35696]
[1719971854596,2.35557,3396.2,3394.2,2.35696]
[1719971854782,2.35557,3396.2,3394.0,2.35708]
[1719971854783,2.35581,3395.9,3394.0,2.35708]
[1719971855202,2.35581,3395.9,3394.2,2.3569]
[1719971855486,2.35581,3395.9,3394.3,4.71378]
[1719971855809,2.35585,3395.8,3394.3,2.35687]
[1719971856008,0.235538,3396.4,3394.8,2.35653]
[1719971856170,3.7077,3397.4,3393.8,7.43093]
[1719971856171,11.18591,3396.3,3394.6,2.35667]
[1719971856379,2.3556,3396.2,3394.7,2.35661]
[1719971857033,2.3556,3396.2,3394.0,3.0]
[1719971857343,2.3556,3396.2,3393.9,2.3571]
[1719971857344,2.3556,3396.2,3394.7,2.35655]
[1719971857669,2.3556,3396.2,3393.9,5.3571]
[1719971857670,4.3614,3396.0,3394.2,2.3569]
[1719971857794,2.35603,3395.6,3394.1,2.35701]
[1719971857989,2.35603,3395.6,3393.4,3.0]
[1719971857990,2.35603,3395.6,3394.0,2.35709]
[1719971858205,2.35613,3395.4,3393.7,2.3573]
[1719971858528,2.35627,3395.2,3393.7,2.3573]
[1719971858728,2.35613,3395.4,3393.7,2.3573]
[1719971859033,8.8304,3395.3,3393.8,0.05891851]
[1719971859349,8.8304,3395.3,3394.6,2.35666]
[1719971859487,8.8304,3395.3,3394.6,0.235666]
[1719971859688,8.8304,3395.3,3395.0,2.35635]
[1719971859941,8.8304,3395.3,3394.6,0.235666]
[1719971859942,2.3555,3396.3,3394.6,2.35667]
[1719971860098,4.3917,3396.7,3394.5,2.35672]
[1719971860099,2.35544,3396.4,3394.7,2.35661]
[1719971860426,4.3917,3396.7,3395.0,2.35639]
[1719971860590,4.3917,3396.7,3394.3,6.83728]
[1719971860591,0.674684,3396.6,3395.2,2.35626]
[1719971860792,6.72277,3397.5,3395.3,0.05889442]
[1719971861039,4.3681,3397.5,3396.1,2.35562]
[1719971861203,2.35424,3398.2,3396.5,2.3553]
[1719971861406,2.35424,3398.2,3395.7,6.79436]
[1719971861407,2.35424,3398.2,3396.7,2.35522]
[1719971861701,8.8304,3398.1,3396.9,2.35508]
[1719971861950,0.34155395,3398.0,3397.0,0.05886737]
[1719971862084,0.34155395,3398.0,3396.8,0.05886737]
[1719971862285,0.34155395,3398.0,3396.4,2.3554]
[1719971862588,0.91719539,3397.9,3396.6,2.35529]
[1719971863040,0.91719539,3397.9,3396.7,2.35522]
[1719971863521,0.91719539,3397.9,3396.8,0.05887206]
[1719971863694,0.91719539,3397.9,3396.9,2.35508]
[1719971863890,0.91719539,3397.9,3396.8,0.05887206]
[1719971863891,0.02581593,3398.0,3397.0,0.0588673]
[1719971864095,0.02581593,3398.0,3397.8,2.35445]
[1719971864397,0.02581593,3398.0,3397.8,2.41330467]
[1719971864694,8.8304,3398.1,3397.8,2.41330467]
[1719971865346,8.8304,3398.1,3397.8,2.35441]
[1719971865695,9.71344,3398.1,3396.6,2.35523]
[1719971865905,9.71344,3398.1,3397.0,2.355]
[1719971866212,9.71344,3398.1,3396.3,4.3385]
[1719971866435,9.71344,3398.1,3395.3,4.86918]
[1719971866436,9.71344,3398.1,3396.0,2.35567]
[1719971866594,9.71344,3398.1,3395.6,4.3385]
[1719971866595,2.35461,3397.6,3395.9,2.35572]
[1719971866795,12.80944,3398.1,3395.6,4.3385]
[1719971866796,4.621615,3397.5,3395.6,4.3385]
[1719971867106,2.35482,3397.3,3395.6,2.35592]
[1719971867418,2.35482,3397.3,3395.7,2.3559]
[1719971867797,0.06077477,3397.4,3396.2,2.35553]
[1719971867965,0.06077477,3397.4,3396.7,2.35516]
[1719971868122,0.06077477,3397.4,3397.0,2.35501]
[1719971868303,9.71344,3398.1,3397.0,2.35501]
[1719971868503,8.8304,3398.1,3396.4,4.2009]
[1719971868710,8.8304,3398.1,3397.5,2.35465]
[1719971869002,8.8304,3398.1,3396.9,2.35508]
[1719971869003,8.8304,3398.1,3397.6,2.41345626]
[1719971869204,8.8304,3398.1,3397.7,2.35452]
[1719971869451,8.8304,3398.1,3397.8,2.41330479]
[1719971870203,8.8304,3398.1,3397.9,2.35439]
[1719971870602,8.8304,3398.1,3397.9,2.41324238]
[1719971870803,8.8304,3398.1,3397.9,2.35439]
[1719971871407,8.8304,3398.1,3396.6,2.513]
[1719971871632,8.8304,3398.1,3396.2,0.235553]
[1719971871633,8.8304,3398.1,3397.0,2.35495]
[1719971872230,8.8304,3398.1,3397.1,2.35494]
[1719971872538,8.8304,3398.1,3397.3,2.3548]
[1719971872741,8.8304,3398.1,3397.1,2.35494]
[1719971873743,8.8304,3398.1,3397.2,2.35487]
[1719971874619,8.8304,3398.1,3397.5,2.35466]
[1719971874828,8.8304,3398.1,3397.8,2.35446]
[1719971875036,8.8304,3398.1,3397.9,0.05885304]
[1719971875529,8.8304,3398.1,3397.7,2.35453]
[1719971875730,8.8304,3398.1,3397.8,2.41329557]
[1719971876131,8.8304,3398.1,3397.3,2.3548]
[1719971876345,8.8304,3398.1,3397.8,2.3544]
[1719971877048,7.48,3399.1,3398.1,2.35425]
[1719971877275,1.410282,3399.0,3398.1,2.35425]
[1719971877411,4.2694,3399.3,3398.1,2.35425]
[1719971877872,4.2694,3399.3,3397.6,2.35459]
[1719971878073,2.35353,3399.2,3397.7,2.35451]
[1719971878779,2.35353,3399.2,3397.8,2.35445]
[1719971879008,0.897634,3399.1,3397.8,2.35445]
[1719971879191,3.251224,3399.1,3397.5,2.35466]
[1719971879487,2.35369,3399.0,3397.3,2.3548]
[1719971879644,0.3251324,3398.9,3397.5,2.35465]
[1719971879845,0.3251324,3398.9,3397.7,2.35447]
[1719971880076,0.897634,3399.1,3397.8,0.05884722]
[1719971880276,0.897634,3399.1,3398.0,2.35431]
[1719971880497,7.48,3399.2,3396.7,1.178736]
[1719971880674,7.48,3399.2,3395.9,7.39]
[1719971880675,2.35454,3397.7,3395.9,2.35577]
[1719971880859,2.35454,3397.7,3395.6,4.0428]
[1719971880860,7.48,3397.8,3395.7,1.179086]
[1719971881061,2.35502,3397.0,3395.7,1.179086]
[1719971881368,2.35502,3397.0,3394.9,6.39921]
[1719971881369,2.35523,3396.7,3394.9,4.0428]
[1719971881567,2.35544,3396.4,3394.9,4.0428]
[1719971881773,4.0533,3396.8,3395.4,2.35612]
[1719971881948,7.48,3397.2,3395.6,2.35598]
[1719971882142,7.48,3397.2,3395.2,2.35619]
[1719971882347,2.35516,3396.8,3395.2,2.35619]
[1719971882558,2.35504,3397.0,3395.4,2.35611]
[1719971882982,2.35504,3397.0,3395.5,2.35604]
[1719971883179,3.574025,3397.0,3395.5,2.35604]
[1719971884197,7.48,3397.2,3395.6,0.05888721]
[1719971884363,7.48,3397.2,3395.7,0.55]
[1719971884557,7.48,3397.2,3396.1,2.35564]
[1719971884976,7.48,3397.2,3396.2,0.05887735]
[1719971886191,7.48,3397.2,3396.1,2.35564]
[1719971886500,7.48,3397.2,3395.7,0.55]
[1719971886501,0.748,3397.1,3395.7,2.3559]
[1719971886695,0.748,3397.1,3395.9,2.35572]
[1719971887195,0.748,3397.1,3395.7,2.3559]
[1719971887399,7.48,3397.2,3395.3,3.0]
[1719971887595,7.48,3397.2,3394.9,6.5558]
[1719971887596,9.83489,3397.2,3395.6,2.35592]
[1719971887796,9.83489,3397.2,3395.8,2.35583]
[1719971887974,0.983489,3397.1,3395.4,2.9061]
[1719971888164,2.35518,3396.8,3395.3,2.35619]
[1719971888381,4.71039,3396.8,3395.3,2.35619]
[1719971888578,2.35537,3396.5,3395.0,2.35635]
[1719971888787,7.48,3396.7,3395.3,2.35613]
[1719971888962,7.48,3396.7,3395.3,0.47713337]
[1719971889303,7.48,3396.7,3395.2,2.35625]
[1719971889304,9.83522,3396.7,3395.2,2.35625]
[1719971889679,9.83522,3396.7,3395.0,2.3564]
[1719971889983,7.48,3396.7,3395.7,2.35591]
[1719971890822,7.48,3396.7,3396.1,2.35563]
[1719971891026,7.48,3396.7,3396.2,2.35554]
[1719971891225,7.48,3396.7,3395.5,4.4624]
[1719971891226,7.48,3396.7,3395.8,2.35582]
[1719971891522,7.48,3396.7,3395.1,2.35631]
[1719971891523,8.228,3396.7,3395.1,2.35631]
[1719971891723,2.35531,3396.6,3394.6,2.35667]
[1719971892027,2.35531,3396.6,3394.4,2.35681]
[1719971892028,2.35571,3396.0,3394.4,2.35681]
[1719971892228,2.35562,3396.2,3394.6,2.35668]
[1719971892393,2.35551,3396.3,3394.0,4.4624]
[1719971892597,5.194631,3396.5,3394.1,3.59554155]
[1719971892598,7.550041,3396.5,3394.1,3.59554155]
[1719971892905,7.549991,3396.5,3395.0,2.3564]
[1719971893218,1.8029991,3396.4,3395.1,2.41516637]
[1719971893402,1.8029991,3396.4,3395.2,2.35624]
[1719971893587,1.8029991,3396.4,3395.3,0.05889379]
[1719971893789,2.35564,3396.1,3394.4,2.35681]
[1719971894038,2.35573,3396.0,3394.5,2.35673]
[1719971894327,2.35564,3396.1,3394.3,2.35684]
[1719971894328,2.3558,3395.9,3394.3,2.35684]
[1719971894529,2.3558,3395.9,3394.4,2.35676]
[1719971894730,2.827014,3395.8,3394.2,2.3569]
[1719971894933,2.35592,3395.7,3394.2,2.3569]
[1719971895233,2.35592,3395.7,3393.7,1.179759]
[1719971895234,2.35613,3395.4,3393.7,3.537059]
[1719971895391,2.35613,3395.4,3394.0,2.35708]
[1719971896716,4.71204,3395.6,3394.1,2.35701]
[1719971897038,2.827264,3395.5,3394.1,2.35701]
[1719971897635,7.48,3395.9,3394.7,2.35659]
[1719971897813,7.48,3395.9,3394.8,0.05890234]
[1719971898251,7.48,3395.9,3394.4,2.35679]
[1719971898458,9.83578,3395.9,3394.4,2.35679]
[1719971898737,1.219144,3395.8,3394.5,2.35675]
[1719971899047,2.35594,3395.7,3394.0,2.35707]
[1719971899196,4.1101,3395.3,3393.7,2.3573]
[1719971899396,2.35636,3395.1,3393.6,2.35731]
[1719971899858,8.9821,3395.3,3393.1,1.17999]
[1719971900147,8.9821,3395.3,3392.5,2.35813]
[1719971900148,2.35696,3394.2,3392.5,2.35813]
[1719971900373,4.0584,3394.1,3392.7,2.35798]
[1719971900834,2.35682,3394.4,3393.0,2.35778]
[1719971901035,0.983682,3394.3,3393.1,0.05893072]
[1719971901658,0.983682,3394.3,3393.1,2.41664072]
[1719971901954,0.983682,3394.3,3393.1,4.77435072]
[1719971902097,7.48,3394.5,3393.2,2.41657332]
[1719971902440,7.48,3394.5,3392.8,2.35786]
[1719971902441,9.83681,3394.5,3392.8,2.35786]
[1719971902597,2.35699,3394.2,3392.6,2.35805]
[1719971902987,2.35704,3394.1,3392.6,2.35805]
[1719971903648,2.35704,3394.1,3392.7,2.41692823]
[1719971903966,2.35704,3394.1,3392.1,1.180326]
[1719971903967,2.35704,3394.1,3392.5,2.3581]
[1719971904266,0.24112368,3394.0,3392.6,2.35803]
[1719971904471,0.24112368,3394.0,3392.7,2.35796]
[1719971904640,0.05419683,3394.2,3392.8,0.05893823]
[1719971904853,0.05419683,3394.2,3393.9,2.35714]
[1719971905142,4.4349,3395.4,3394.0,0.0589198]
[1719971905338,4.48909683,3395.4,3394.0,2.4160098]
[1719971905645,0.44349,3395.3,3394.0,2.4160098]
[1719971905843,0.44349,3395.3,3393.8,2.3572]
[1719971906028,0.44349,3395.3,3393.5,2.35742]
[1719971906029,2.3564,3395.1,3393.5,2.35742]
[1719971906253,0.44349,3395.3,3393.3,2.35757]
[1719971906567,2.35685,3394.4,3393.0,2.35778]
[1719971907368,2.35697,3394.2,3392.5,2.35813]
[1719971908079,0.05419683,3394.3,3393.0,2.35776]
[1719971908224,0.05419683,3394.3,3393.1,0.05893389]
[1719971908430,0.05419683,3394.3,3393.2,2.3576]
[1719971908662,4.409,3394.5,3393.6,2.35734]
[1719971909373,4.409,3394.5,3393.6,2.35732]
[1719971909663,4.409,3394.5,3392.9,2.35781]
[1719971909869,4.8499,3394.5,3393.2,2.35759]
[1719971910164,7.20671,3394.5,3393.1,2.35772]